bitfinex-derivatives/quotes_SOLF0:USTF0_20220109
["timestamp","ask_amount","ask_price","bid_price","bid_amount"]
[1641736981141,4.0,138.83,138.71,31.66479]
[1641736981342,4.0,138.84,138.72,6.61980831]
[1641736981742,7.20616848,138.87,138.73,0.81880831]
[1641736981944,2.0,138.84,138.77,2.0]
[1641736982341,2.0,138.84,138.73,4.81880831]
[1641736982542,2.0,138.84,138.74,1.801]
[1641736982742,2.0,138.84,138.77,2.0]
[1641736982942,29.66479,138.84,138.77,2.0]
[1641736983549,29.66479,138.84,138.73,1.801]
[1641736983744,2.0,138.83,138.74,2.0]
[1641736984946,27.66479,138.81,138.71,158.95231894]
[1641736985146,27.66479,138.81,138.76,2.0]
[1641736985349,29.66479,138.84,138.77,2.0]
[1641736985555,2.0,138.84,138.76,6.767]
[1641736985748,2.0,138.84,138.83,2.0]
[1641736985949,2.0,138.91,138.83,17.16520161]
[1641736986148,40.12540801,138.93,138.87,2.0]
[1641736986348,2.0,138.94,138.87,8.592]
[1641736986548,40.12540801,138.98,138.89,2.0]
[1641736986748,40.12540801,138.98,138.87,8.592]
[1641736986947,40.12540801,138.98,138.88,27.66479]
[1641736986948,27.66479,138.95,138.88,27.66479]
[1641736987149,27.66479,138.95,138.89,3.9999]
[1641736987950,27.66479,138.95,138.86,27.66479]
[1641736988248,7.20331352,138.93,138.84,1.799]
[1641736988450,7.20331352,138.93,138.83,3.9999]
[1641736989053,27.66479,138.89,138.83,3.9999]
[1641736989252,36.74279,138.89,138.83,3.9999]
[1641736989452,36.74279,138.89,138.85,3.9999]
[1641736989652,2.41593243,138.92,138.87,3.9999]
[1641736990052,2.41593243,138.92,138.85,8.972]
[1641736990258,29.66479,138.95,138.85,3.9999]
[1641736990453,6.31,138.92,138.87,3.9999]
[1641736990955,27.66479,138.9,138.87,3.9999]
[1641736991652,29.66479,138.95,138.83,7.1999424]
[1641736991854,29.66479,138.95,138.87,3.9999]
[1641736993054,57.32958,138.95,138.83,11.1999424]
[1641736993255,57.32958,138.95,138.83,12.9989424]
[1641736993457,65.92658,138.95,138.83,12.9989424]
[1641736993655,65.92658,138.95,138.88,3.9999]
[1641736994858,65.92658,138.95,138.83,8.9989424]
[1641736995057,65.92658,138.95,138.83,12.9989424]
[1641736995259,65.92658,138.95,138.88,3.9999]
[1641736995959,65.92658,138.95,138.84,3.9999]
[1641736996660,2.42209043,138.94,138.83,7.1999424]
[1641736996859,2.42209043,138.94,138.84,3.9999]
[1641736997060,27.66479,138.91,138.82,27.66479]
[1641736997360,33.89979,138.91,138.82,27.66479]
[1641736997660,33.89979,138.91,138.88,3.9999]
[1641736997870,6.235,138.91,138.88,3.9999]
[1641736998059,6.235,138.91,138.83,7.1999424]
[1641736998259,29.66479,138.95,138.84,1.8]
[1641736998460,29.66479,138.95,138.83,8.9989424]
[1641736998659,37.99079,138.95,138.83,8.9989424]
[1641736998859,37.99079,138.95,138.85,3.9999]
[1641736999060,27.66479,138.92,138.85,3.9999]
[1641736999261,34.21479,138.92,138.85,3.9999]
[1641736999559,34.21479,138.92,138.84,3.9999]
[1641736999861,34.21479,138.92,138.82,27.66479]
[1641737000063,34.21479,138.92,138.83,3.9999]
[1641737000264,34.21479,138.92,138.82,27.66479]
[1641737001166,34.21479,138.92,138.85,3.9999]
[1641737003269,34.21479,138.92,138.82,27.66479]
[1641737003866,34.21479,138.92,138.84,3.9999]
[1641737004066,34.21479,138.92,138.83,3.9999]
[1641737005067,34.21479,138.92,138.86,3.9999]
[1641737005268,34.21479,138.92,138.82,27.66479]
[1641737006068,36.21479,138.92,138.84,3.9999]
[1641737006268,36.21479,138.92,138.82,27.66479]
[1641737006467,36.21479,138.92,138.83,3.9999]
[1641737007368,36.21479,138.92,138.82,27.66479]
[1641737007770,36.21479,138.92,138.8,11.20139791]
[1641737007971,17.60768833,138.91,138.8,11.20139791]
[1641737008271,17.60768833,138.91,138.8,7.20149791]
[1641737008672,17.60768833,138.91,138.8,11.20139791]
[1641737008875,15.17621902,138.9,138.8,11.20139791]
[1641737009274,27.66479,138.88,138.8,11.20139791]
[1641737009474,34.00079,138.88,138.8,11.20139791]
[1641737010474,2.43146931,138.87,138.8,3.9999]
[1641737010774,2.43146931,138.87,138.77,48.1484]
[1641737010976,17.60768833,138.87,138.76,75.76599]
[1641737011175,27.66479,138.83,138.76,44.1013]
[1641737011375,34.29379,138.83,138.76,3.9999]
[1641737011575,34.29379,138.83,138.75,46.1453]
[1641737011775,34.29379,138.83,138.77,3.9999]
[1641737011975,6.629,138.83,138.77,3.9999]
[1641737012176,6.629,138.83,138.77,4.0]
[1641737012375,15.17621902,138.87,138.76,7.20383244]
[1641737012576,15.17621902,138.87,138.77,1.8]
[1641737012978,15.17621902,138.87,138.81,4.0]
[1641737013178,2.43616542,138.87,138.83,27.66479]
[1641737013379,2.43616542,138.87,138.85,3.9999]
[1641737013779,2.43616542,138.87,138.82,11.20062007]
[1641737013978,2.43616542,138.87,138.8,1.8]
[1641737013979,8.33716542,138.87,138.8,1.8]
[1641737014180,5.901,138.87,138.79,15.17621902]
[1641737014378,5.901,138.87,138.79,19.17611902]
[1641737014979,5.901,138.87,138.81,3.9999]
[1641737015180,33.56579,138.87,138.81,3.9999]
[1641737015881,2.43616542,138.86,138.81,3.9999]
[1641737016281,2.43616542,138.86,138.8,2.65650634]
[1641737016580,2.43616542,138.86,138.77,85.34384409]
[1641737016780,2.43616542,138.86,138.82,3.9999]
[1641737017782,2.43616542,138.86,138.85,3.9999]
[1641737017982,27.66479,138.87,138.81,7.20123861]
[1641737018281,27.66479,138.87,138.84,3.9999]
[1641737018584,27.66479,138.87,138.81,7.20123861]
[1641737018784,27.66479,138.87,138.84,3.9999]
[1641737019184,27.66479,138.87,138.82,2.65605953]
[1641737019584,15.17621902,138.91,138.86,3.9999]
[1641737020183,17.61530179,138.91,138.86,3.9999]
[1641737020986,17.61530179,138.91,138.83,3.9999]
[1641737021386,27.66479,138.89,138.83,3.9999]
[1641737021685,27.66479,138.89,138.82,46.5883]
[1641737021886,2.43908277,138.88,138.83,3.9999]
[1641737022086,2.43908277,138.88,138.82,46.5883]
[1641737023288,2.43908277,138.88,138.85,3.9999]
[1641737023989,2.43908277,138.88,138.81,80.15952861]
[1641737024188,2.43908277,138.88,138.83,3.9999]
[1641737024390,2.43908277,138.88,138.85,3.9999]
[1641737025190,2.43908277,138.88,138.81,78.35952861]
[1641737025392,9.32408277,138.88,138.81,71.15829]
[1641737025589,9.32408277,138.88,138.83,3.9999]
[1641737026889,2.43908277,138.87,138.83,3.9999]
[1641737028293,2.43908277,138.88,138.83,3.9999]
[1641737034300,2.43908277,138.88,138.81,43.4935]
[1641737034499,2.43908277,138.88,138.82,3.9999]
[1641737034700,2.43908277,138.88,138.81,43.4935]
[1641737034902,11.47508277,138.88,138.82,2.65781564]
[1641737035602,17.61530179,138.87,138.79,2.65781564]
[1641737035801,17.61530179,138.87,138.79,6.65771564]
[1641737036000,27.66479,138.85,138.79,6.65771564]
[1641737036200,36.51679,138.85,138.79,6.65771564]
[1641737036604,36.51679,138.85,138.79,3.9999]
[1641737037403,2.43908277,138.84,138.79,3.9999]
[1641737037805,2.43908277,138.84,138.78,7.20279468]
[1641737038004,36.51679,138.85,138.81,3.9999]
[1641737039004,36.51679,138.85,138.78,7.20279468]
[1641737039204,36.51679,138.85,138.81,3.9999]
[1641737039704,36.51679,138.85,138.79,2.65775409]
[1641737040309,36.51679,138.85,138.82,3.9999]
[1641737040504,36.51679,138.85,138.78,7.20279468]
[1641737040706,36.51679,138.85,138.8,3.9999]
[1641737040904,36.51679,138.85,138.78,7.20279468]
[1641737041405,36.51679,138.85,138.83,3.9999]
[1641737041606,2.44210319,138.84,138.83,13.2669]
[1641737042507,2.44210319,138.87,138.83,13.2669]
[1641737044009,2.0,138.88,138.83,13.2669]
[1641737044209,2.0,138.88,138.83,9.267]
[1641737044511,2.0,138.88,138.86,3.9999]
[1641737045313,2.0,138.88,138.87,7.9999]
[1641737045513,15.17621902,138.9,138.87,3.9999]
[1641737045715,15.17621902,138.9,138.86,13.0469]
[1641737045913,15.17621902,138.9,138.89,3.9999]
[1641737046113,13.17631902,138.9,138.89,10.0309]
[1641737046512,40.12540801,138.93,138.89,10.0309]
[1641737046713,40.12540801,138.93,138.89,6.031]
[1641737046913,37.56487895,138.94,138.89,6.031]
[1641737047113,37.56487895,138.94,138.87,3.9999]
[1641737047312,37.56487895,138.94,138.86,3.9999]
[1641737047512,2.43892309,138.93,138.85,3.9999]
[1641737047713,22.89435685,138.93,138.86,3.9999]
[1641737048115,22.89435685,138.93,138.87,3.9999]
[1641737048316,2.43892309,138.92,138.87,3.9999]
[1641737049015,6.961,138.92,138.87,3.9999]
[1641737049414,6.961,138.92,138.86,3.9999]
[1641737049615,6.961,138.92,138.83,1.799]
[1641737049815,2.43892309,138.91,138.82,52.97732007]
[1641737050015,27.66479,138.9,138.84,3.9999]
[1641737050214,27.66479,138.9,138.81,51.4392996]
[1641737050215,27.66479,138.9,138.81,1.8]
[1641737050416,27.66479,138.9,138.76,4.0]
[1641737050417,27.66479,138.9,138.78,40.70848701]
[1641737050623,20.45913748,138.89,138.78,40.70848701]
[1641737050818,27.65513748,138.89,138.78,40.70848701]
[1641737051017,7.20616848,138.87,138.78,40.70848701]
[1641737051217,7.20616848,138.87,138.75,46.4698]
[1641737051418,7.20616848,138.87,138.75,3.9999]
[1641737051616,7.20616848,138.87,138.73,47.5327]
[1641737051815,7.20772668,138.84,138.73,1.801]
[1641737052015,27.66479,138.79,138.72,68.37327701]
[1641737052217,35.37379,138.79,138.72,40.70848701]
[1641737052418,35.37379,138.79,138.77,3.9999]
[1641737052616,7.709,138.79,138.77,3.9999]
[1641737053419,45.23202309,138.86,138.76,2.65534511]
[1641737053617,2.43892309,138.86,138.76,2.65534511]
[1641737053818,46.0348,138.88,138.78,3.9999]
[1641737054021,27.66479,138.83,138.75,7.20435143]
[1641737054221,35.48979,138.83,138.74,44.3102]
[1641737054821,35.48979,138.83,138.73,10.45798865]
[1641737055021,35.48979,138.83,138.72,4.0]
[1641737055222,35.48979,138.83,138.75,3.9999]
[1641737055421,35.48979,138.83,138.71,9.00716848]
[1641737055621,35.48979,138.83,138.73,0.81877856]
[1641737056030,27.66479,138.8,138.73,0.81877856]
[1641737056224,34.65379,138.8,138.73,0.81877856]
[1641737056723,34.65379,138.8,138.73,4.81867856]
[1641737057224,34.65379,138.8,138.73,0.81877856]
[1641737057425,34.65379,138.8,138.71,7.20616848]
[1641737057926,34.65379,138.8,138.72,3.46812153]
[1641737058126,34.65379,138.8,138.72,7.46802153]
[1641737058326,34.65379,138.8,138.73,0.81880079]
[1641737058726,34.65379,138.8,138.72,2.64932074]
[1641737058926,34.65379,138.8,138.71,3.9999]
[1641737060226,27.66479,138.77,138.71,3.9999]
[1641737060627,27.66479,138.77,138.69,45.646]
[1641737060828,27.66479,138.77,138.71,3.9999]
[1641737062228,27.66479,138.77,138.72,3.9999]
[1641737062628,27.66479,138.77,138.69,45.646]
[1641737063428,27.66479,138.77,138.7,0.81886406]
[1641737063632,27.66479,138.77,138.71,3.9999]
[1641737063929,27.66479,138.77,138.75,3.9999]
[1641737064130,27.66479,138.77,138.71,4.0]
[1641737064329,27.66479,138.77,138.75,3.9999]
[1641737064731,27.66479,138.8,138.75,3.9999]
[1641737065933,2.0,138.77,138.75,3.9999]
[1641737068038,2.0,138.77,138.71,5.801]
[1641737068238,2.0,138.77,138.76,3.9999]
[1641737068438,2.0,138.77,138.76,10.3899]
[1641737068641,56.7313,138.86,138.76,14.3899]
[1641737068939,42.503,138.87,138.81,3.9999]
[1641737069138,8.5401,138.9,138.81,13.2399]
[1641737069639,15.74497049,138.9,138.81,9.24]
[1641737070042,20.46446279,138.89,138.75,1.8]
[1641737070242,20.46446279,138.89,138.75,3.9999]
[1641737070444,27.66479,138.78,138.75,3.9999]
[1641737070642,36.35379,138.78,138.75,3.9999]
[1641737071343,36.35379,138.78,138.7,5.8009]
[1641737071542,36.35379,138.78,138.69,1.801]
[1641737071744,36.35379,138.78,138.67,40.70848701]
[1641737072144,36.35379,138.78,138.68,4.81890527]
[1641737072444,27.66479,138.73,138.68,4.81890527]
[1641737072643,27.66479,138.73,138.69,0.81900527]
[1641737073143,27.66479,138.73,138.68,0.81900527]
[1641737073343,27.66479,138.73,138.7,3.9999]
[1641737077349,27.66479,138.73,138.67,45.4726]
[1641737077549,34.30479,138.73,138.67,49.4725]
[1641737078050,34.30479,138.73,138.68,0.81904076]
[1641737078455,34.30479,138.73,138.68,3.47108076]
[1641737078854,34.30479,138.73,138.69,0.81904076]
[1641737079253,34.30479,138.73,138.69,3.47108076]
[1641737079452,27.66479,138.73,138.69,3.47108076]
[1641737079653,27.66479,138.73,138.72,3.9999]
[1641737079853,27.66479,138.73,138.7,3.9999]
[1641737080054,27.66479,138.73,138.7,2.65204]
[1641737080754,27.66479,138.73,138.68,2.65204]
[1641737080953,27.66479,138.74,138.68,2.65204]
[1641737081153,27.66479,138.74,138.69,0.81901882]
[1641737081358,27.66479,138.74,138.71,3.9999]
[1641737082255,27.66479,138.74,138.68,2.65204]
[1641737082455,27.66479,138.74,138.73,3.9999]
[1641737082657,27.66479,138.74,138.71,3.9999]
[1641737083457,27.66479,138.74,138.73,3.9999]
[1641737083658,27.66479,138.78,138.73,10.6849]
[1641737083861,27.66479,138.78,138.73,6.685]
[1641737084059,27.66479,138.78,138.75,3.9999]
[1641737084459,27.66479,138.78,138.73,6.685]
[1641737085260,27.66479,138.78,138.71,15.26186664]
[1641737085865,27.66479,138.78,138.7,6.65754415]
[1641737086064,27.66479,138.78,138.7,2.65764415]
[1641737086466,27.66479,138.75,138.71,2.65764415]
[1641737087265,27.66479,138.75,138.7,2.65764415]
[1641737087766,27.66479,138.75,138.7,6.65754415]
[1641737088366,35.75779,138.75,138.7,2.65764415]
[1641737088567,35.75779,138.75,138.71,2.65764415]
[1641737089367,35.75779,138.75,138.7,2.65764415]
[1641737089968,27.66479,138.75,138.7,6.65754415]
[1641737090168,27.66479,138.75,138.73,3.9999]
[1641737090469,27.66479,138.78,138.7,2.65764415]
[1641737090668,27.66479,138.78,138.7,3.9999]
[1641737090868,27.66479,138.78,138.69,15.72346694]
[1641737091271,27.66479,138.78,138.73,3.9999]
[1641737093671,27.66479,138.78,138.74,3.9999]
[1641737094072,27.66479,138.78,138.69,17.52446694]
[1641737094273,27.66479,138.78,138.74,3.9999]
[1641737094674,27.66479,138.78,138.7,15.26186664]
[1641737095274,27.66479,138.78,138.71,0.8188699]
[1641737095872,27.66479,138.78,138.72,2.65718548]
[1641737096775,27.66479,138.75,138.72,2.65718548]
[1641737097475,27.66479,138.75,138.7,2.65718548]
[1641737098274,27.66479,138.75,138.68,28.40619053]
[1641737098876,27.66479,138.7,138.68,32.40609053]
[1641737099076,27.66479,138.75,138.69,3.9999]
[1641737099278,27.66479,138.75,138.69,11.7289]
[1641737099476,2.4411071,138.74,138.69,11.7289]
[1641737100280,2.4411071,138.74,138.69,7.729]
[1641737100479,42.92665664,138.75,138.7,2.65718548]
[1641737100480,27.66479,138.75,138.7,2.65718548]
[1641737100878,27.66479,138.71,138.7,2.65718548]
[1641737101286,27.66479,138.71,138.65,28.40446805]
[1641737101678,27.66479,138.71,138.66,3.9999]
[1641737102178,27.66479,138.71,138.65,32.40446805]
[1641737102379,27.66479,138.75,138.7,3.9999]
[1641737102579,27.66479,138.75,138.72,3.9999]
[1641737103179,27.66479,138.75,138.68,4.0]
[1641737103379,27.66479,138.75,138.73,3.9999]
[1641737105986,27.66479,138.75,138.72,3.9999]
[1641737106184,34.96379,138.75,138.69,60.65626664]
[1641737106985,62.62858,138.75,138.7,2.6595284]
[1641737107586,62.62858,138.75,138.67,41.7637]
[1641737107784,62.62858,138.75,138.67,45.7636]
[1641737108384,62.62858,138.75,138.68,2.6593284]
[1641737108585,62.62858,138.75,138.71,3.9999]
[1641737108784,62.62858,138.75,138.71,12.7879]
[1641737108984,55.32958,138.75,138.71,12.7879]
[1641737109687,55.32958,138.75,138.71,8.788]
[1641737110289,55.32958,138.75,138.67,61.02546664]
[1641737111088,55.32958,138.75,138.68,0.81904519]
[1641737111389,55.32958,138.75,138.71,3.9999]
[1641737111788,55.32958,138.75,138.68,3.47777885]
[1641737111989,55.32958,138.75,138.67,57.02556664]
[1641737112489,55.32958,138.75,138.68,3.47826711]
[1641737112890,55.32958,138.75,138.71,3.9999]
[1641737113092,17.26186664,138.78,138.71,6.295]
[1641737113492,40.12540801,138.8,138.77,3.9999]
[1641737113691,40.12540801,138.8,138.77,6.899]
[1641737113891,40.12540801,138.8,138.79,3.9999]
[1641737114092,38.12550801,138.8,138.79,3.9999]
[1641737114593,1.87960801,138.87,138.79,3.9999]
[1641737114793,1.87960801,138.87,138.8,3.9999]
[1641737114996,27.66479,138.84,138.8,11.4799]
[1641737115395,27.66479,138.84,138.8,7.48]
[1641737115795,27.66479,138.84,138.81,3.9999]
[1641737116196,27.66479,138.84,138.8,7.48]
[1641737116397,27.66479,138.84,138.8,11.4799]
[1641737117799,27.66479,138.84,138.8,7.48]
[1641737117998,27.66479,138.84,138.74,48.79277049]
[1641737117999,33.44879,138.84,138.74,47.3878]
[1641737118198,33.44879,138.84,138.74,45.5878]
[1641737118599,20.47050454,138.83,138.74,45.5878]
[1641737118799,20.47050454,138.83,138.74,41.5879]
[1641737118998,27.66479,138.78,138.74,41.5879]
[1641737119199,27.66479,138.78,138.71,27.66479]
[1641737119400,27.66479,138.78,138.75,3.9999]
[1641737119602,27.66479,138.78,138.74,3.9999]
[1641737119801,42.3142,138.84,138.72,2.65567163]
[1641737120002,42.3142,138.84,138.73,3.9999]
[1641737120400,2.43326072,138.83,138.73,4.81871896]
[1641737120802,2.43326072,138.83,138.73,3.9999]
[1641737121001,27.66479,138.77,138.71,2.65567163]
[1641737121202,27.66479,138.77,138.7,45.18533525]
[1641737121403,27.66479,138.77,138.74,3.9999]
[1641737121601,27.66479,138.77,138.71,0.81880722]
[1641737121802,27.66479,138.77,138.76,3.9999]
[1641737122402,27.66479,138.77,138.74,3.9999]
[1641737122703,35.63879,138.77,138.74,3.9999]
[1641737123603,35.63879,138.77,138.75,3.9999]
[1641737123804,35.63879,138.77,138.7,29.46579]
[1641737124003,35.63879,138.77,138.75,3.9999]
[1641737124406,27.66479,138.77,138.75,11.6069]
[1641737124605,27.66479,138.79,138.75,7.607]
[1641737124806,27.66479,138.79,138.76,3.9999]
[1641737125006,27.66479,138.79,138.75,7.607]
[1641737125712,27.66479,138.79,138.78,3.9999]
[1641737125913,27.66479,138.79,138.78,10.0199]
[1641737126313,27.66479,138.81,138.78,10.0199]
[1641737126514,25.66479,138.81,138.8,1.9999]
[1641737126714,2.0001,138.87,138.8,1.9999]
[1641737127118,27.66479,138.85,138.78,8.02]
[1641737127516,27.66479,138.85,138.81,1.9999]
[1641737128316,2.43198282,138.84,138.81,1.9999]
[1641737128717,2.43198282,138.84,138.83,1.9999]
[1641737128917,2.43198282,138.84,138.83,8.1169]
[1641737129817,27.66479,138.87,138.83,8.1169]
[1641737130016,27.66479,138.87,138.83,6.1169]
[1641737130418,5.20367297,138.92,138.83,6.1169]
[1641737130716,45.4996,138.93,138.83,6.1169]
[1641737130717,9.87165718,138.91,138.83,6.1169]
[1641737131118,27.66479,138.89,138.83,6.1169]
[1641737131319,27.66479,138.89,138.81,42.2514]
[1641737132419,2.4306052,138.88,138.81,42.2514]
[1641737133918,2.0,138.84,138.81,42.2514]
[1641737134119,2.0,138.84,138.79,9.00227592]
[1641737134319,2.0,138.84,138.79,13.00227592]
[1641737135222,0.0001,138.84,138.8,4.0]
[1641737135426,0.0001,138.84,138.81,5.8]
[1641737135621,25.66499,138.91,138.83,7.19968321]
[1641737136121,25.66499,138.91,138.83,11.19968321]
[1641737136322,25.66499,138.91,138.84,2.6493295]
[1641737136522,25.66499,138.91,138.84,8.4493295]
[1641737136722,25.66499,138.91,138.84,13.2283295]
[1641737137021,25.66499,138.91,138.84,11.4283295]
[1641737137222,25.66499,138.91,138.85,27.66479]
[1641737137422,27.66479,138.94,138.85,31.66479]
[1641737137722,9.85480691,138.96,138.86,4.0]
[1641737137921,10.66,138.97,138.85,33.46379]
[1641737138123,10.66,138.97,138.86,4.0]
[1641737138521,14.66,138.97,138.85,33.46379]
[1641737139022,23.653,138.97,138.85,29.46379]
[1641737139223,27.66479,138.93,138.85,72.05399]
[1641737139524,2.0,138.91,138.85,70.25499]
[1641737140425,2.0,138.91,138.85,42.5902]
[1641737140924,2.0,138.91,138.83,27.66479]
[1641737141124,6.0,138.91,138.83,27.66479]
[1641737141325,27.66479,138.89,138.82,39.9032]
[1641737144825,27.66479,138.89,138.82,43.9032]
[1641737145228,27.66479,138.89,138.82,47.10417933]
[1641737147627,4.0,138.86,138.8,1.8]
[1641737147827,4.0,138.85,138.77,42.7505]
[1641737148027,4.0,138.85,138.76,15.23879178]
[1641737148428,6.728,138.86,138.73,54.83828963]
[1641737148627,10.728,138.86,138.73,54.83828963]
[1641737148828,15.23879178,138.87,138.77,4.0]
[1641737149028,15.23879178,138.87,138.77,9.979]
[1641737149229,15.23879178,138.87,138.79,27.66479]
[1641737149429,2.42893591,138.85,138.79,27.66479]
[1641737149629,2.42893591,138.85,138.8,1.8]
[1641737149830,2.42893591,138.85,138.8,9.78]
[1641737150629,2.42893591,138.85,138.81,4.0]
[1641737151031,2.42893591,138.85,138.8,9.78]
[1641737151230,55.32958,138.89,138.8,9.78]
[1641737153835,55.32958,138.89,138.8,1.8]
[1641737154035,2.43182157,138.88,138.8,1.8]
[1641737156135,2.43182157,138.88,138.81,2.65848396]
[1641737159842,2.43182157,138.88,138.8,4.45848396]
[1641737160344,2.43182157,138.88,138.8,8.45848396]
[1641737160543,2.43182157,138.88,138.81,2.65848396]
[1641737160745,2.43182157,138.88,138.81,10.09248396]
[1641737160945,2.43182157,138.88,138.81,14.09248396]
[1641737161245,2.43182157,138.88,138.81,21.29372257]
[1641737161447,17.23879178,138.89,138.86,27.66479]
[1641737161643,17.23879178,138.89,138.86,38.79979]
[1641737161844,2.0,138.89,138.86,38.79979]
[1641737162044,2.0,138.89,138.86,36.99979]
[1641737163548,2.0,138.89,138.86,9.335]
[1641737163749,2.0,138.89,138.85,7.19942405]
[1641737164948,2.0,138.89,138.85,11.19942405]
[1641737165149,2.0,138.89,138.86,1.8]
[1641737165349,2.0,138.89,138.86,9.739]
[1641737165650,2.0,138.89,138.86,13.739]
[1641737166050,2.0,138.89,138.86,9.739]
[1641737166951,2.0,138.89,138.86,1.8]
[1641737167150,2.0,138.89,138.85,7.19942405]
[1641737169953,2.0,138.89,138.84,57.12958]
[1641737170154,2.0,138.89,138.84,27.66479]
[1641737173255,2.0,138.89,138.84,29.46479]
[1641737173456,2.0,138.89,138.84,33.46479]
[1641737173655,2.0,138.89,138.84,40.66447321]
[1641737173856,2.0,138.89,138.84,36.66447321]
[1641737175157,2.0,138.89,138.84,40.66447321]
[1641737175356,2.0,138.89,138.84,74.40726321]
[1641737175759,2.0,138.89,138.85,4.0]
[1641737176057,15.23879178,138.94,138.87,4.0]
[1641737176258,15.23879178,138.94,138.87,12.254]
[1641737176758,40.64024749,138.97,138.88,5.799]
[1641737176959,9.87924922,138.97,138.88,54.96831039]
[1641737177361,9.87924922,138.97,138.89,27.66479]
[1641737177860,20.44733157,138.96,138.89,27.66479]
[1641737179261,34.33342696,138.97,138.89,27.66479]
[1641737179461,4.0,138.91,138.85,43.9455]
[1641737179663,9.34,138.91,138.85,43.9455]
[1641737179961,9.34,138.91,138.84,27.66479]
[1641737180560,87.27624749,138.95,138.86,4.0]
[1641737180763,40.64024749,138.95,138.87,1.799]
[1641737180961,44.64024749,138.95,138.87,1.799]
[1641737181161,4.0,138.95,138.87,1.799]
[1641737181363,2.0,138.96,138.88,27.66479]
[1641737182364,20.44926566,138.95,138.88,27.66479]
[1641737184563,20.44926566,138.95,138.89,7.19735137]
[1641737184764,20.44926566,138.95,138.89,15.32335137]
[1641737184964,2.0,138.96,138.89,15.32335137]
[1641737185565,2.0,138.96,138.92,27.66479]
[1641737185766,2.0,138.96,138.92,34.13779]
[1641737186165,2.0,138.96,138.92,41.33332877]
[1641737187965,2.0,138.96,138.92,7.19553877]
[1641737188766,2.0,138.96,138.92,14.70953877]
[1641737189569,2.0,138.96,138.92,42.37432877]
[1641737190271,2.0,138.96,138.92,44.17332877]
[1641737191374,2.0,138.96,138.92,42.37432877]
[1641737192772,2.0,138.96,138.9,1.799]
[1641737192773,8.37,138.96,138.9,1.799]
[1641737192973,8.37,138.96,138.89,8.99609237]
[1641737193174,8.37,138.96,138.88,29.46379]
[1641737193474,36.03479,138.96,138.88,27.66479]
[1641737193675,24.53789304,138.95,138.88,27.66479]
[1641737194875,24.53789304,138.95,138.89,1.799]
[1641737195277,2.0,138.96,138.89,2.61686145]
[1641737195477,2.0,138.96,138.89,0.81786145]
[1641737196076,24.53789304,138.95,138.88,27.66479]
[1641737196877,2.0,138.96,138.88,27.66479]
[1641737197479,24.53789304,138.95,138.88,27.66479]
[1641737198280,26.53789304,138.96,138.88,27.66479]
[1641737198981,24.53789304,138.95,138.88,27.66479]
[1641737199782,26.53789304,138.96,138.88,27.66479]
[1641737199983,26.53789304,138.96,138.88,36.93279]
[1641737200484,24.53789304,138.95,138.88,36.93279]
[1641737201390,2.0,138.96,138.88,36.93279]
[1641737201984,24.53789304,138.95,138.88,36.93279]
[1641737202284,26.96978778,138.95,138.88,36.93279]
[1641737202885,2.43189474,138.94,138.88,36.93279]
[1641737203787,24.53789304,138.93,138.88,36.93279]
[1641737204589,4.08950997,138.93,138.88,38.73179]
[1641737205490,28.62653062,138.95,138.88,36.93279]
[1641737206492,28.62653062,138.95,138.89,7.19709237]
[1641737206692,28.62653062,138.95,138.9,1.799]
[1641737206892,28.62653062,138.95,138.89,8.99609237]
[1641737207093,4.08950997,138.95,138.9,0.81780538]
[1641737207292,2.43423993,138.94,138.9,0.81780538]
[1641737207694,4.08950997,138.93,138.89,8.99609237]
[1641737208396,4.08950997,138.95,138.9,0.81778244]